[Event "Marienbad A1-GM 2024"]
[Site "Marianske Lazne"]
[Date "2024.01.17"]
[Round "6.2"]
[White "Neuman, Petr"]
[Black "Stefansson, Hannes"]
[Result "1-0"]
[ECO "A40"]
[WhiteElo "2398"]
[BlackElo "2498"]
[Annotator "TA"]
[PlyCount "55"]
[EventDate "2024.01.10"]
[EventType "tourn"]
[EventCountry "CZE"]
[SourceTitle "playchess.com"]
[Source "ChessBase"]
[SourceQuality "1"]
[TimeControl "40/5400+30:1800+30"]

{[%evp 14,55,0,1,0,-9,0,-28,-29,-33,-27,-52,-47,-46,-32,-49,-45,-47,-37,-34,-7,-38,-42,-60,79,75,140,145,215,192,189,195,175,169,287,294,240,291,275,187,698,691,739,736]} 1. d4 {[%emt 0:00:06]} Nf6 {[%emt 0:00:21]} 2. c4 {[%emt 0:00:14]} e6 {[%emt 0:00:23]} 3. g3 {[%emt 0:01:11]} c5 {[%emt 0:00:54]} 4. Nf3 {[%emt 0:00:21]} cxd4 {[%emt 0:01:34]} 5. Nxd4 {[%emt 0:00:10]} d5 {[%emt 0:03:41]} 6. Bg2 {[%emt 0:00:15]} e5 {[%emt 0:00:37]} 7. Nb3 {[%emt 0:05:28]} d4 {[%emt 0:05:52]} 8. O-O {[%emt 0:02:00]} Nc6 {[%emt 0:01:03] E01: Catalan: Early deviations.} 9. e3 {[%emt 0:00:37] The modern move.} Bg4 {[%emt 0:01:29]} 10. f3 {[%emt 0:03:32]} Be6 {[%emt 0:01:23] Black has an edge.} 11. exd4 {[%emt 0:00:20]} exd4 {[%emt 0:06:47]} 12. Bg5 {[%emt 0:03:22]} Be7 {[%emt 0:05:40]} 13. N1d2 {[%emt 0:01:39][%cal Bb1d2,Bd2e4,Be4d6][%mdl 32]} O-O {[%emt 0:03:25]} (13... d3 {feels hotter.} 14. f4 O-O 15. Kh1 Rc8) 14. Bxf6 {[%emt 0:05:31]} Bxf6 {[%emt 0:00:43]} ({Of course not} 14... gxf6 15. f4 $11) 15. Nc5 {[%emt 0:00:13]} Bf5 {[%emt 0:05:09] [#]} 16. Nde4 $146 {[%emt 0:02:41]} ({Predecessor:} 16. g4 Qe7 17. Nde4 Bxe4 18. Nxe4 Rad8 19. Qb3 d3 20. Rad1 Bd4+ 21. Kh1 Ne5 22. g5 {0-1 Sjodahl,P (2421)-Brynell,S (2472) SWE-chT 0910 2009 (2)}) 16... d3 {[%emt 0:07:38]} 17. Kh1 {[%emt 0:01:19]} Bxb2 {[%emt 0:18:24] A strong pair of Bishops.} 18. Rb1 {[%emt 0:00:28]} Bd4 {[%emt 0:00:30]} (18... b6 $15 {stays ahead.} 19. Nxd3 Bd4) 19. Nxb7 $16 {[%emt 0:01:14]} Qe7 {[%emt 0:14:10] [#]} (19... Qd7 $142) 20. Ned6 $1 {[%emt 0:02:33]} Qd7 {[%emt 0:03:36]} (20... Bc8 $16) 21. f4 {[%emt 0:02:09] Nxf5 would be deadly.} Bh3 {[%emt 0:01:57]} 22. Bxh3 {[%emt 0:01:04]} Qxh3 {[%emt 0:00:08]} 23. Qxd3 {[%emt 0:01:14]} g6 {[%emt 0:04:00]} (23... Qd7 $142 24. Qe4 Bf6) 24. Qe4 $18 {[%emt 0:02:19]} Qd7 {[%emt 0:00:24] Black is weak on the light squares} 25. Rfd1 {[%emt 0:00:52]} Rab8 {[%emt 0:05:05]} 26. Qd5 {[%emt 0:16:54][%cal Od6f7]} Bg7 $2 {[%emt 0:02:24]} (26... Bb6) 27. Nc5 {[%emt 0:02:16]} Qc7 {[%emt 0:00:09] [#] And now ...Ne7 would win.} 28. Na6 $1 {[%emt 0:00:37][%csl LRb8,LRc7] Weighted Error Value: White=0.14 (very precise) /Black=0.70} 1-0

[Event "Marienbad A1-GM 2024"]
[Site "Marianske Lazne"]
[Date "2024.01.17"]
[Round "6.3"]
[White "Pang, Tao"]
[Black "Baenziger, Fabian"]
[Result "1/2-1/2"]
[ECO "A06"]
[WhiteElo "2430"]
[BlackElo "2414"]
[Annotator "TA"]
[PlyCount "77"]
[EventDate "2024.01.10"]
[EventType "tourn"]
[EventCountry "CZE"]
[SourceTitle "playchess.com"]
[Source "ChessBase"]
[SourceQuality "1"]
[TimeControl "40/5400+30:1800+30"]

{[%evp 10,77,27,8,13,-8,-12,-11,-10,-13,-12,-12,-22,-23,-16,-20,-18,-25,-40,-97,-99,-102,-103,-125,-104,-123,-100,-175,-159,-230,-207,-205,-196,-200,-206,-220,-125,-212,-43,-36,-21,-130,-130,-137,-143,-331,-331,-328,-327,-439,-28,-16,0,0,0,0,0,-35,0,0,15,0,0,0,0,0,0,0,0,0]} 1. Nf3 {[%emt 0:00:03]} d5 {[%emt 0:00:18]} 2. g3 {[%emt 0:00:10]} Bg4 {[%emt 0:00:21]} 3. Bg2 {[%emt 0:00:14]} Nd7 {[%emt 0:00:26]} 4. O-O {[%emt 0:01:00]} c6 {[%emt 0:00:56]} 5. h3 {[%emt 0:01:08]} Bh5 {[%emt 0:00:13]} 6. d3 {[%emt 0:00:44]} e6 {[%emt 0:00:25] A07: Réti Opening: New York and Capablanca Systems.} 7. Qe1 {[%emt 0:01:37]} Bd6 {[%emt 0:01:18] [#]} 8. Nfd2 $146 {[%emt 0:01:24]} ({Predecessor:} 8. e4 Ne7 9. Nh2 O-O 10. f4 dxe4 11. dxe4 f6 12. Nd2 e5 13. Nc4 Bc5+ 14. Kh1 {1-0 Vidit,S (2727)-Zhigalko,S (2572) Titled Tuesday intern op 15th Feb Late blitz 2022 (9)}) 8... f6 {[%emt 0:11:31]} 9. e4 {[%emt 0:03:32]} Ne7 {[%emt 0:00:16]} 10. Nb3 {[%emt 0:05:22]} Bf7 {[%emt 0:04:23]} 11. c4 {[%emt 0:04:24]} O-O {[%emt 0:09:21]} 12. Nc3 {[%emt 0:02:20]} Nc5 {[%emt 0:10:37]} 13. Nxc5 {[%emt 0:12:37]} Bxc5 {[%emt 0:00:10]} 14. e5 {[%emt 0:02:34]} (14. b3 $15) 14... Nf5 $17 {[%emt 0:11:03]} 15. Kh1 {[%emt 0:06:55]} fxe5 {[%emt 0:03:13]} 16. Qxe5 {[%emt 0:00:52]} Bd6 {[%emt 0:02:52]} 17. Qe1 {[%emt 0:00:31]} Qf6 $36 {[%emt 0:00:05][%mdl 2048] White is under strong pressure.} 18. f4 {[%emt 0:05:55] [#]} (18. Ne2 $17) 18... h5 $1 $19 {[%emt 0:14:05]} 19. Nd1 {[%emt 0:14:49]} (19. Bd2 $17) 19... h4 {[%emt 0:07:14]} 20. gxh4 {[%emt 0:00:06]} Nxh4 {[%emt 0:00:27]} 21. Ne3 {[%emt 0:00:51]} Nxg2 {[%emt 0:04:44]} ({Don't play} 21... Bxf4 22. Ng4 Qe7 23. Bxf4 $18) 22. Nxg2 {[%emt 0:00:01]} e5 {[%emt 0:07:34]} (22... Bh5 $19 23. Qg3 Rad8) 23. c5 {[%emt 0:02:58]} (23. fxe5 $17 Qxe5 24. Bf4 Qxe1 25. Raxe1) 23... Bc7 $2 {[%emt 0:00:55]} ({Better is} 23... Bxc5 $19 {White must now prevent ...Bg6.} 24. fxe5 Qe6) 24. fxe5 $15 {[%emt 0:01:01]} Qe6 {[%emt 0:02:28]} (24... Qxe5 {simplifies} 25. Bf4 Qxe1 26. Rfxe1 Bd8) 25. d4 {[%emt 0:02:45]} (25. Qg3 $11) 25... Qxh3+ $17 {[%emt 0:00:04]} 26. Kg1 {[%emt 0:00:02] White is weak on the light squares} Bg6 {[%emt 0:01:02] [#] And now ...Be4 would win.} 27. Nf4 $2 {[%emt 0:03:44]} (27. Bf4 $17) 27... Qg4+ $19 {[%emt 0:01:12]} 28. Kh2 {[%emt 0:00:04]} Be4 {[%emt 0:03:55][%cal Of8f4] ( -> ...Rxf4!)} 29. Rg1 {[%emt 0:00:10]} Qf5 {[%emt 0:01:35]} (29... Rxf4 $19 30. Rxg4 Rxg4) 30. Qh4 $11 {[%emt 0:03:18]} Bd8 {[%emt 0:00:39] A strong pair of Bishops.} 31. Qh6 {[%emt 0:01:07][%csl Gh6][%cal Rg1g7] Dancing on a razor blade.} Qh7 {[%emt 0:00:11]} 32. Qxh7+ {[%emt 0:00:51]} Kxh7 {[%emt 0:00:05]} 33. Be3 {[%emt 0:00:22]} Bf5 {[%emt 0:02:24]} 34. Raf1 {[%emt 0:07:40][%cal Of4e6] The position is equal.} Be7 {[%emt 0:00:03]} 35. Rf3 {[%emt 0:02:06][%cal Of4g6]} g5 {[%emt 0:01:17]} 36. Nh5 {[%emt 0:04:39]} Kg6 {[%emt 0:00:14]} 37. Nf4+ $1 {[%emt 0:00:40]} (37. Rgf1 Rf7 38. Kg1 Be6 $15) 37... Kh7 {[%emt 0:00:03]} 38. Nh5 {[%emt 0:02:49]} Kg6 {[%emt 0:00:04]} 39. Nf4+ $1 {[%emt 0:00:03] Weighted Error Value: White=0.33/Black=0.30} ({Much worse is} 39. Rgf1 Rab8 $17) 1/2-1/2

[Event "Marienbad A1-GM 2024"]
[Site "Marianske Lazne"]
[Date "2024.01.17"]
[Round "6.4"]
[White "Natsidis, Christoph"]
[Black "Haring, Filip"]
[Result "0-1"]
[ECO "D37"]
[WhiteElo "2324"]
[BlackElo "2432"]
[Annotator "TA"]
[PlyCount "48"]
[EventDate "2024.01.10"]
[EventType "tourn"]
[EventCountry "CZE"]
[SourceTitle "playchess.com"]
[Source "ChessBase"]
[SourceQuality "1"]
[TimeControl "40/5400+30:1800+30"]

{[%evp 15,48,4,0,3,10,0,9,-58,-64,-63,-67,-72,-72,-57,-31,-85,-83,-91,-104,-90,-92,-132,-131,-145,-145,-127,-66,-158,-163,-153,-168,-252,-250,-271,-256]} 1. d4 {[%emt 0:00:30]} Nf6 {[%emt 0:00:15]} 2. c4 {[%emt 0:00:00]} e6 {[%emt 0:00:07]} 3. Nf3 {[%emt 0:00:00]} d5 {[%emt 0:01:17]} 4. Nc3 {[%emt 0:00:09]} dxc4 {[%emt 0:03:05]} 5. e3 {[%emt 0:00:07]} a6 {[%emt 0:00:15]} 6. Bxc4 {[%emt 0:00:07]} b5 {[%emt 0:00:21]} 7. Bb3 {[%emt 0:00:07]} Bb7 {[%emt 0:00:28]} 8. O-O {[%emt 0:09:10]} c5 {[%emt 0:00:19]} 9. e4 {[%emt 0:17:15] is now more promising than 9.Qe2. D27: Queen's Gambit Accepted: Classical main line: 7 e4!? and 7 a4.} cxd4 {[%emt 0:14:09]} 10. Nxd4 {[%emt 0:02:13] e5 would be deadly.} Nbd7 {[%emt 0:00:52] [#]} 11. Bxe6 {[%emt 0:20:42]} fxe6 $15 {[%emt 0:01:22]} 12. Nxe6 {[%emt 0:00:04]} Qb6 {[%emt 0:01:05]} 13. Nd5 {[%emt 0:00:20]} Bxd5 {[%emt 0:02:17]} (13... Qxe6 $2 14. Nc7+ Ke7 15. Nxe6 Kxe6 16. Qb3+ Ke7 17. e5 $18) 14. exd5 {[%emt 0:00:05]} Kf7 $1 {[%emt 0:03:42] [#]} 15. Qf3 $146 {[%emt 0:22:15]} ({White should play} 15. Qb3 $15 Bd6 16. Be3) ({Predecessor:} 15. Re1 Bd6 16. Ng5+ Kg8 17. Re6 h6 18. Nf3 Nf8 19. Re2 Rd8 20. Nd4 Bc5 21. Be3 Rxd5 {0-1 Nagy,G (2516)-Banusz,T (2631) EU-Cup Online Gr-H rapid 2021 (5.1)}) 15... Bd6 $17 {[%emt 0:13:00]} ({Much worse is} 15... Kg8 $6 16. Bg5 $15) 16. Be3 {[%emt 0:03:07]} Qb7 {[%emt 0:00:28]} 17. Ng5+ {[%emt 0:00:39]} Kg8 {[%emt 0:00:19]} 18. Rfd1 {[%emt 0:10:13]} Re8 {[%emt 0:07:59]} 19. Rac1 {[%emt 0:07:00]} Ne5 {[%emt 0:07:52]} 20. Qf5 {[%emt 0:01:16]} Nc4 {[%emt 0:08:04]} ({Much less strong is} 20... Nxd5 21. Qe4 h6 22. Qxd5+ Qxd5 23. Rxd5 $16) ({Black should try} 20... h6 $17 21. Ne6 Qf7) 21. Bf4 {[%emt 0:03:36]} (21. Ne6 $15) 21... Bxf4 {[%emt 0:01:18]} 22. Qxf4 {[%emt 0:00:04]} h6 {[%emt 0:01:47]} ({Not} 22... Nxb2 23. Re1 Qd7 24. Rxe8+ Qxe8 25. Ne6 $15) 23. Ne6 {[%emt 0:00:59]} (23. Nf3 $142) 23... Nxd5 $19 {[%emt 0:00:31]} (23... Nxb2 $2 24. Rc7 $18) 24. Qf5 {[%emt 0:00:56]} Qf7 {[%emt 0:03:19] Weighted Error Value: White=0.36/Black=0.06 (flawless)} 0-1

[Event "Marienbad A1-GM 2024"]
[Site "Marianske Lazne"]
[Date "2024.01.17"]
[Round "6.5"]
[White "Stein, Robert"]
[Black "Haba, Petr"]
[Result "1/2-1/2"]
[ECO "D30"]
[WhiteElo "2429"]
[BlackElo "2437"]
[Annotator "TA"]
[PlyCount "29"]
[EventDate "2024.01.10"]
[EventType "tourn"]
[EventCountry "CZE"]
[SourceTitle "playchess.com"]
[Source "ChessBase"]
[SourceQuality "1"]
[TimeControl "40/5400+30:1800+30"]

{[%evp 25,29,0,0,-12,0,0]} 1. d4 {[%emt 0:00:03]} d5 {[%emt 0:00:25]} 2. c4 {[%emt 0:00:25]} e6 {[%emt 0:00:17]} 3. Nf3 {[%emt 0:00:31]} c6 {[%emt 0:00:26]} 4. Qc2 {[%emt 0:02:23]} dxc4 {[%emt 0:00:25]} 5. Qxc4 {[%emt 0:00:25]} Nf6 {[%emt 0:02:26]} 6. g3 {[%emt 0:01:33]} b5 {[%emt 0:00:25]} 7. Qb3 {[%emt 0:05:34]} Bb7 {[%emt 0:00:39][%cal Bc8b7,Bb7d5,Bd5e4][%mdl 32]} 8. Bg2 {[%emt 0:01:30]} a6 {[%emt 0:00:20]} 9. a4 {[%emt 0:02:02]} Nbd7 {[%emt 0:04:37]} 10. O-O {[%emt 0:10:07]} c5 {[%emt 0:01:20]} 11. axb5 {[%emt 0:04:05]} Bd5 {[%emt 0:00:41]} 12. Qc2 {[%emt 0:08:30]} Be4 {[%emt 0:00:43]} 13. Qb3 {[%emt 0:00:27]} Bd5 {[%emt 0:00:18]} 14. Qc2 {[%emt 0:00:05] [#] D30: Queen's Gambit Declined: Systems without Nc3.} Be4 $146 {[%emt 0:00:43][%mdl 1024] Black has compensation.} ({Predecessor:} 14... axb5 15. Rxa8 Qxa8 16. Nc3 Bc6 17. Nh4 Bxg2 18. Nxg2 b4 19. Nb5 Qc6 20. Qa4 Be7 21. dxc5 O-O 22. Nc3 Qxc5 {0-1 Gurevich,D (2351)-Kaidanov,G (2548) USA-ch Seniors 2022 (7)}) 15. Qb3 {[%emt 0:00:07] An uneventful encounter.} 1/2-1/2

[Event "Marienbad A1-GM 2024"]
[Site "Marianske Lazne"]
[Date "2024.01.18"]
[Round "7.1"]
[White "Haba, Petr"]
[Black "Kusa, Jakub"]
[Result "1-0"]
[ECO "C86"]
[WhiteElo "2437"]
[BlackElo "2350"]
[Annotator "TA"]
[PlyCount "49"]
[EventDate "2024.01.10"]
[EventType "tourn"]
[EventCountry "CZE"]
[SourceTitle "playchess.com"]
[Source "ChessBase"]
[SourceQuality "1"]
[TimeControl "40/5400+30:1800+30"]

{[%evp 17,49,16,22,12,16,0,9,8,12,16,18,8,18,20,53,64,95,64,66,42,43,60,109,118,145,162,352,340,588,574,569,510,633,594]} 1. e4 {[%emt 0:00:18]} e5 {[%emt 0:00:23]} 2. Nf3 {[%emt 0:00:08]} Nc6 {[%emt 0:00:09]} 3. Bb5 {[%emt 0:00:14]} a6 {[%emt 0:00:51]} 4. Ba4 {[%emt 0:00:09]} Nf6 {[%emt 0:00:27]} 5. O-O {[%emt 0:00:31]} Be7 {[%emt 0:01:08]} 6. Qe2 {[%emt 0:05:16]} b5 {[%emt 0:00:45]} 7. Bb3 {[%emt 0:00:05]} O-O {[%emt 0:00:41]} 8. c3 {[%emt 0:02:30]} d5 {[%emt 0:00:16]} 9. d3 {[%emt 0:00:36]} Bb7 {[%emt 0:06:20]} 10. Rd1 {[%emt 0:04:36] C86: Closed Ruy Lopez: Worrall Attack.} Qd6 {[%emt 0:09:49]} 11. Nbd2 {[%emt 0:03:14]} Rad8 {[%emt 0:06:47]} 12. Nf1 {[%emt 0:03:31] [#] The position is equal.} Na5 $146 {[%emt 0:03:07] Threatens to win with ...Nxb3.} ({Predecessor:} 12... d4 13. Ng3 Bc8 14. Nh4 g6 15. Bh6 Rfe8 16. Nf3 Bg4 17. h3 Bxf3 18. Qxf3 Bf8 {½-½ Diaz Begonte,M (1552)-Perez Cameselle,F (1767) Madrid-ch Seniors 50 2019 (3)}) 13. Bxd5 {[%emt 0:11:52]} (13. exd5 {simplifies} Nxd5 14. Bxd5 Qxd5 15. Qxe5 Qxe5 16. Nxe5 f6 17. Ng4) 13... Nxd5 {[%emt 0:02:13]} 14. exd5 {[%emt 0:00:54]} Bxd5 {[%emt 0:01:43]} 15. Qxe5 {[%emt 0:00:29]} Qd7 {[%emt 0:06:54]} (15... c5 {simplifies} 16. Qxd6 Bxd6 17. Nh4 Rfe8) 16. Qg3 {[%emt 0:00:45]} c5 {[%emt 0:02:29]} 17. Bh6 {[%emt 0:03:48][%csl Gh6][%cal Rg3g7] [#]} Bf6 {[%emt 0:02:11]} 18. Ne3 {[%emt 0:03:20][%cal Oe3g4]} Bxf3 {[%emt 0:02:15]} 19. Qxf3 {[%emt 0:00:29]} Qc6 {[%emt 0:01:40]} (19... Rfe8 $14 {is superior.}) 20. Qg3 $16 {[%emt 0:08:16] Nf5 is the strong threat.} Rfe8 {[%emt 0:00:24][%cal Of6c3] [#]} 21. Ng4 $1 $40 {[%emt 0:02:59][%mdl 128] Strongly threatening Nxf6+. White is out for blood.} Rd5 $2 {[%emt 0:04:52]} (21... Rc8 {keeps fighting.} 22. Re1 b4) 22. Re1 $1 $18 {[%emt 0:06:57] Nxf6+ would kill now.} Bg5 {[%emt 0:02:27]} (22... Rf8 23. Rac1 Kh8) 23. Bxg5 {[%emt 0:09:34] White is clearly winning.} Rxg5 {[%emt 0:00:28]} 24. f4 {[%emt 0:00:11][%cal Bf2f4,Bf4f5][%mdl 32]} Rg6 {[%emt 0:00:48]} 25. f5 {[%emt 0:00:16] Weighted Error Value: White=0.10 (very precise) /Black=0.61} 1-0

[Event "Marienbad A1-GM 2024"]
[Site "Marianske Lazne"]
[Date "2024.01.18"]
[Round "7.2"]
[White "Haring, Filip"]
[Black "Stein, Robert"]
[Result "1/2-1/2"]
[ECO "C54"]
[WhiteElo "2432"]
[BlackElo "2429"]
[Annotator "TA"]
[PlyCount "107"]
[EventDate "2024.01.10"]
[EventType "tourn"]
[EventCountry "CZE"]
[SourceTitle "playchess.com"]
[Source "ChessBase"]
[SourceQuality "1"]
[TimeControl "40/5400+30:1800+30"]

{[%evp 17,107,0,3,0,0,0,0,0,0,0,0,0,0,0,0,0,0,0,0,0,46,0,0,0,0,0,0,0,0,0,64,59,60,55,54,73,94,88,83,73,72,35,39,44,61,55,83,83,83,87,91,60,86,48,62,63,63,63,63,46,63,63,63,58,69,50,77,77,66,45,50,50,47,47,47,8,8,8,8,8,8,8,8,8,8,8,8,8,8,8,8,8]} 1. e4 {[%emt 0:00:10]} e5 {[%emt 0:00:07]} 2. Nf3 {[%emt 0:00:20]} Nc6 {[%emt 0:00:09]} 3. Bc4 {[%emt 0:00:25]} Bc5 {[%emt 0:00:15][%cal Bf8c5,Bc5b6,Bb6a5][%mdl 32]} 4. c3 {[%emt 0:00:23]} Nf6 {[%emt 0:00:28]} 5. d4 {[%emt 0:01:06]} exd4 {[%emt 0:00:17]} 6. e5 {[%emt 0:00:06]} d5 {[%emt 0:00:18]} 7. Bb5 {[%emt 0:00:11]} Ne4 {[%emt 0:00:13]} 8. cxd4 {[%emt 0:00:13]} Bb6 $1 {[%emt 0:00:13] 8...Bb6 is better than 8...Bb4+.} 9. Nc3 {[%emt 0:00:36]} O-O {[%emt 0:01:19]} 10. Be3 {[%emt 0:02:15] C54: Giuoco Piano: 4 c3 Nf6, main lines with 5 d4 and 5 d3.} Bg4 {[%emt 0:00:17]} 11. h3 {[%emt 0:01:07]} Bh5 {[%emt 0:00:07]} 12. Qc2 {[%emt 0:01:12]} Ba5 {[%emt 0:00:09]} 13. O-O {[%emt 0:02:36]} Bxf3 {[%emt 0:04:21]} 14. gxf3 {[%emt 0:00:10]} Nxd4 {[%emt 0:00:28][%mdl 64] [#] Deflection} 15. Bxd4 {[%emt 0:00:16]} Qg5+ $1 {[%emt 0:00:23]} 16. Kh1 {[%emt 0:00:25]} Bxc3 $1 {[%emt 0:00:14]} 17. Bxc3 {[%emt 0:00:30]} Qf5 {[%emt 0:01:30][%csl LRf3,LRh3][%cal Oe4g3] And now ...Ng3+! would win.} 18. Rfc1 {[%emt 0:00:24]} Qxh3+ {[%emt 0:04:03]} (18... Qxf3+ 19. Kg1) 19. Kg1 {[%emt 0:00:45][%cal Bh1g1,Bg1g2,Bg2f3,Bf3e2][%mdl 32]} Ng5 {[%emt 0:10:07][%cal Rg5f3]} 20. Be2 {[%emt 0:01:25]} Qh6 {[%emt 0:20:25] Strongly threatening ...Nh3+.} (20... Nxf3+ 21. Bxf3 Qxf3 22. Qd1 $14) 21. f4 {[%emt 0:00:49]} Nh3+ {[%emt 0:00:43]} 22. Kg2 $1 {[%emt 0:00:05]} Nxf4+ {[%emt 0:00:45]} 23. Kf3 $1 {[%emt 0:00:06] [#]} Nxe2 $146 {[%emt 0:10:54]} (23... Ng6 $11 24. Kg2 Qg5+ 25. Kf1 c6) ({Predecessor:} 23... Ng6) 24. Rh1 $1 $14 {[%emt 0:13:34] The board is on fire.} Qg6 {[%emt 0:05:49]} 25. Qxg6 {[%emt 0:26:33]} (25. Qxe2 f6 26. e6 Rae8 $11) 25... fxg6+ {[%emt 0:06:04]} 26. Kxe2 {[%emt 0:00:03]} c5 {[%emt 0:01:28]} 27. Bd2 {[%emt 0:05:25]} Rae8 {[%emt 0:11:55]} 28. f4 {[%emt 0:00:05]} g5 {[%emt 0:01:38]} 29. Raf1 {[%emt 0:01:41]} gxf4 {[%emt 0:05:07]} 30. Bxf4 {[%emt 0:00:05]} g5 {[%emt 0:00:40]} 31. Bh2 {[%emt 0:10:01]} (31. Bxg5 $2 {perishes.} Rxe5+ 32. Be3 Rxf1 33. Kxf1 (33. Rxf1 $2 {is the wrong capture.} d4 $19 {[%mdl 64] Pin}) 33... Rxe3 $19) 31... Rxf1 {[%emt 0:01:03]} 32. Rxf1 {[%emt 0:00:03][%mdl 4096] Endgame KRB-KR} Kg7 {[%emt 0:00:53] [#]} 33. b4 $1 {[%emt 0:20:39]} b6 {[%emt 0:04:38]} 34. Rc1 {[%emt 0:05:20]} Rc8 {[%emt 0:01:18]} 35. Bg1 {[%emt 0:00:47][%cal Rb4c5]} Re8 {[%emt 0:01:52]} 36. bxc5 {[%emt 0:00:35] c6 is the strong threat.} Rxe5+ {[%emt 0:00:49]} 37. Kd3 {[%emt 0:00:39] Hoping for Bd4.} bxc5 {[%emt 0:00:12]} 38. Bxc5 {[%emt 0:00:04][%cal Oc5d4] Threatens to win with Bd4!} Re4 {[%emt 0:00:47]} 39. Bd4+ {[%emt 0:01:28]} Kg6 {[%emt 0:00:38]} 40. Rc5 {[%emt 0:02:07] White is more active.} ({Don't play} 40. Bxa7 Ra4 41. Be3 Rxa2 $11) 40... Re6 {[%emt 0:04:06]} 41. a4 {[%emt 0:31:52]} a6 {[%emt 0:07:12]} 42. Rxd5 {[%emt 0:00:00]} Kh5 {[%emt 0:04:43]} 43. a5 {[%emt 0:00:00]} Kg4 {[%emt 0:03:54]} 44. Be3 {[%emt 0:00:00]} Rg6 {[%emt 0:01:29]} 45. Ke2 {[%emt 0:00:00]} h5 {[%emt 0:00:48]} 46. Rd4+ {[%emt 0:00:00]} Kg3 {[%emt 0:03:33] The position is equal.} 47. Rd1 {[%emt 0:00:00] aiming for Rg1+.} Kg4 $1 {[%emt 0:02:57]} 48. Kf2 {[%emt 0:00:00]} h4 {[%emt 0:01:31]} 49. Kg2 {[%emt 0:00:00]} Re6 {[%emt 0:02:01]} 50. Rd4+ {[%emt 0:00:54]} Kf5 {[%emt 0:00:41]} 51. Bd2 {[%emt 0:00:36]} Re4 {[%emt 0:01:12]} 52. Rd5+ {[%emt 0:02:53]} Re5 {[%emt 0:00:05]} 53. Rxe5+ {[%emt 0:01:42]} Kxe5 {[%emt 0:00:06]} 54. Bxg5 {[%emt 0:00:06] Weighted Error Value: White=0.05 (flawless) /Black=0.06 (flawless)} 1/2-1/2

[Event "Marienbad A1-GM 2024"]
[Site "Marianske Lazne"]
[Date "2024.01.18"]
[Round "7.3"]
[White "Baenziger, Fabian"]
[Black "Natsidis, Christoph"]
[Result "1-0"]
[ECO "D37"]
[WhiteElo "2414"]
[BlackElo "2324"]
[Annotator "TA"]
[PlyCount "53"]
[EventDate "2024.01.10"]
[EventType "tourn"]
[EventCountry "CZE"]
[SourceTitle "playchess.com"]
[Source "ChessBase"]
[SourceQuality "1"]
[TimeControl "40/5400+30:1800+30"]

{[%evp 9,53,22,40,31,31,34,42,35,45,23,25,25,38,34,27,20,22,12,24,8,30,22,70,32,146,133,166,161,165,163,181,185,255,266,266,266,251,251,256,257,250,263,237,259,235,164]} 1. d4 {[%emt 0:00:03]} Nf6 {[%emt 0:01:41]} 2. Nf3 {[%emt 0:00:13]} e6 {[%emt 0:00:03]} 3. c4 {[%emt 0:00:18]} d5 {[%emt 0:00:16]} 4. Nc3 {[%emt 0:00:08]} dxc4 {[%emt 0:00:21]} 5. e4 {[%emt 0:00:24][%cal Be2e4,Be4e5][%mdl 32]} b5 {[%emt 0:00:09]} 6. e5 {[%emt 0:00:13] D24: Queen's Gambit Accepted: 3 Nf3 Nf6 4 Nc3.} Nd5 {[%emt 0:00:05]} 7. Nxb5 {[%emt 0:00:06]} Nb6 {[%emt 0:00:09]} 8. Be2 {[%emt 0:01:15] White is slightly better.} Nc6 {[%emt 0:00:12]} 9. Be3 {[%emt 0:00:35]} Be7 {[%emt 0:04:12]} 10. O-O {[%emt 0:00:35]} O-O {[%emt 0:01:52]} 11. Nc3 {[%emt 0:00:25][%cal Bb5c3,Bc3e4,Be4g5][%mdl 32]} Rb8 {[%emt 0:01:42]} 12. b3 {[%emt 0:01:06]} cxb3 {[%emt 0:06:35]} 13. axb3 {[%emt 0:00:12]} Bb7 {[%emt 0:00:36]} 14. Qb1 {[%emt 0:01:09]} Nb4 {[%emt 0:10:15]} 15. Ne4 {[%emt 0:01:40]} N6d5 {[%emt 0:03:05]} (15... h6 $11 {deserves consideration.}) 16. Bd2 {[%emt 0:12:27][%cal Oe4g5] [#] White is more active.} (16. Neg5 {keeps more tension.} g6 17. Bd2 Nc3 18. Bxc3 Bxg5 19. Bxb4 Bxf3 20. Bxf8 Bxe2 21. Re1) 16... f5 $146 {[%emt 0:22:08]} (16... h6 $14) ({Predecessor:} 16... a5 17. Rc1 Ra8 18. Neg5 g6 19. h4 Qd7 20. h5 h6 21. Ne4 g5 22. Nc5 Bxc5 23. Rxc5 {½-½ Wang,J (2312)-Tabatabaei,M (2629) PNWCC Thanksgiving op rapid 2020 (5)}) 17. exf6 $16 {[%emt 0:04:56]} Nxf6 {[%emt 0:01:25]} 18. Neg5 {[%emt 0:01:57]} Bd5 {[%emt 0:04:13] [#]} 19. Bc4 $1 {[%emt 0:01:31]} (19. Rxa7 h6 20. Nh3 Nc6 $17) 19... Rb6 {[%emt 0:07:33]} 20. Re1 {[%emt 0:04:06]} (20. Rxa7 Bxc4 21. bxc4 Nc6 $11) 20... Qc8 {[%emt 0:02:20]} (20... Qd7 {was worth a try.} 21. Rxa7 (21. Ne5 Qe8 $18) 21... h6) 21. Bxb4 $18 {[%emt 0:17:02]} ({Inferior is} 21. Rxa7 Bxc4 22. bxc4 Nc6 $17) 21... Bxb4 {[%emt 0:01:48] [#]} 22. Rxe6 {[%emt 0:00:07][%mdl 576] X-Ray Attack} Bxe6 {[%emt 0:22:35]} 23. Nxe6 {[%emt 0:00:28]} Rxe6 {[%emt 0:00:50]} 24. Ng5 {[%emt 0:08:00][%cal Bf3g5,Bg5e6,Be6g7][%mdl 96] Pin} Kh8 {[%emt 0:00:51]} (24... Rfe8 $2 25. Qf5) 25. Nxe6 {[%emt 0:00:14]} Re8 {[%emt 0:00:42]} 26. Qf5 {[%emt 0:00:13]} ({But not} 26. Rxa7 $6 Rxe6 27. Bxe6 Qxe6 $16) 26... a5 {[%emt 0:02:28] Black is weak on the light squares} 27. Nxg7 {[%emt 0:08:30][%mdl 64] Decoy. Excellently played by Baenziger!   Weighted Error Value: White=0.04 (flawless) /Black=0.22 (precise)} 1-0